[Event "Caplin Hastings Masters 2023-24"]
[Site "Hastings"]
[Date "2024.01.02"]
[Round "6.10"]
[White "Bozinakis, Pavlos"]
[Black "Petrov, Martin"]
[Result "0-1"]
[ECO "B90"]
[WhiteElo "2274"]
[BlackElo "2501"]
[Annotator "TA"]
[PlyCount "66"]
[EventDate "2023.12.18"]
[EventType "swiss"]
[EventCountry "ENG"]
[SourceTitle "playchess.com"]
[Source "ChessBase"]
[SourceQuality "1"]
[TimeControl "40/6000+30:3000+30"]

{[%evp 18,66,27,28,31,27,25,26,34,41,36,33,39,36,62,36,48,50,54,44,114,107,97,66,162,108,136,120,115,97,122,126,107,106,94,89,104,-27,-34,-536,-476,-1258,0,0,397,367,506,503,487,-29994,-29995]} 1. e4 {[%emt 0:00:08]} c5 {[%emt 0:00:14]} 2. Nf3 {[%emt 0:00:40]} d6 {[%emt 0:00:11]} 3. d4 {[%emt 0:00:17]} cxd4 {[%emt 0:00:08]} 4. Nxd4 {[%emt 0:00:09]} Nf6 {[%emt 0:00:08]} 5. Nc3 {[%emt 0:00:12]} a6 {[%emt 0:00:09]} 6. f3 {[%emt 0:00:30]} e5 {[%emt 0:00:15]} 7. Nb3 {[%emt 0:00:11]} Be7 {[%emt 0:00:28]} 8. Be3 {[%emt 0:00:29]} Be6 {[%emt 0:00:11]} 9. Qd2 {[%emt 0:00:28]} h5 {[%emt 0:00:20]} 10. Be2 {[%emt 0:01:43]} Nbd7 {[%emt 0:00:45]} 11. Nd5 {[%emt 0:00:43] Prevents Qc7} Bxd5 {[%emt 0:00:58]} 12. exd5 {[%emt 0:00:16]} Qc7 {[%emt 0:00:05] White has an edge.} 13. c4 {[%emt 0:03:06]} a5 {[%emt 0:19:23]} 14. Rc1 {[%emt 0:06:46]} a4 {[%emt 0:08:01]} 15. Na1 {[%emt 0:00:13]} e4 {[%emt 0:00:42]} 16. O-O {[%emt 0:04:27]} exf3 {[%emt 0:00:27]} 17. gxf3 {[%emt 0:04:17]} O-O {[%emt 0:05:33]} 18. Nc2 {[%emt 0:02:08]} Rae8 {[%emt 0:03:38]} (18... Rfe8 $14) 19. Nd4 {[%emt 0:04:48]} Bd8 {[%emt 0:03:06]} 20. Nb5 {[%emt 0:02:11]} Qb8 {[%emt 0:02:40]} (20... Qa5 $14 21. Qxa5 (21. Nxd6 $2 Qxd2 22. Bxd2 Rxe2 $19) 21... Bxa5) 21. Bf4 {[%emt 0:03:56]} (21. Bd4 $1 $18) 21... Ne5 {[%emt 0:01:36]} 22. Bd1 {[%emt 0:02:59]} h4 {[%emt 0:23:25]} 23. Bxa4 {[%emt 0:06:48]} Bb6+ {[%emt 0:00:03]} 24. Kh1 $1 {[%emt 0:00:39]} Nh5 {[%emt 0:00:02]} 25. Bg5 {[%emt 0:02:25]} Qc8 {[%emt 0:00:35] [#] Threatens to win with ...Qh3.} 26. Qg2 {[%emt 0:14:56] Repels Qh3} (26. Nxd6 Qh3 27. Ne4 (27. Nxe8 $2 Ng3#) (27. Bxh4 Ra8 $17) 27... Ra8 $17) 26... h3 {[%emt 0:08:52] [#]} 27. Qc2 {[%emt 0:09:17]} (27. Qd2 $1 $16 Nxc4 28. Qd3) 27... Nxf3 $1 $11 {[%emt 0:02:21][%mdl 64] ...Qg4 would be deadly. Remove Defender, Decoy} 28. Nxd6 $2 {[%emt 0:06:07][%mdl 8192]} (28. Rxf3 $2 Qg4 $19) (28. Qd1 $1 $15 Qg4 29. Qxf3 Qxg5 30. Rc3 (30. Qxh3 $2 Re4 $19) (30. Nxd6 $2 Re3 $19)) 28... Qg4 $19 {[%emt 0:00:03]} 29. Bxe8 {[%emt 0:01:26]} (29. Bd7 $142 Qxd7 30. Nxe8 (30. Rxf3 $2 Qg4 $19) 30... Nxg5 31. Nxg7 Nxg7 32. Qd2) 29... Nxg5 $2 $40 {[%emt 0:01:24][%mdl 128] Black is up to no good. A dynamic duo of knights.} ({Black should try} 29... Rxe8 $19 30. Rf2 Bxf2 31. Qxf2 Qxg5) 30. Bxf7+ $1 $11 {[%emt 0:09:26]} Rxf7 $4 {[%emt 0:06:31][%mdl 8192]} (30... Nxf7 $11 31. Qe4 (31. Nxb7 $2 {perishes.} Re8 $19) 31... Qg5 32. Nxf7 (32. Nxb7 Be3 $11) 32... Rxf7 33. Qe8+ Kh7 34. Qe4+ (34. Qxf7 $2 Qg2#) 34... Kg8 35. Qe8+ Kh7 36. Qe4+ (36. Qxf7 $2 Qg2#) 36... Kg8) 31. Nxf7 $18 {[%emt 0:03:16]} Nf3 {[%emt 0:10:35] ( -> ...Nf4)} 32. c5 {[%emt 0:14:57]} Bxc5 {[%emt 0:03:17]} 33. Rce1 $4 {[%emt 0:04:20][%mdl 8192]} (33. Qe2 $18 Nf4 34. Nh6+ (34. Qxf3 $2 {gets mated.} Qg2+ 35. Qxg2 hxg2#) 34... gxh6 35. Rg1 {[%mdl 64] Pin} (35. Qxf3 $2 {leads to mate.} Qg2+ 36. Qxg2+ hxg2#) (35. Qe8+ Kg7) 35... Qg2+ {[%mdl 64] Decoy} 36. Rxg2+ hxg2+ 37. Qxg2+ Nxg2 38. Kxg2 Nh4+ 39. Kh3) 33... Nxe1 {[%emt 0:01:12] An exciting game.   Weighted Error Value: White=0.71/Black=0.68} 0-1

[Event "Caplin Hastings Masters 2023-24"]
[Site "Hastings"]
[Date "2024.01.02"]
[Round "6.11"]
[White "Sengupta, Deep"]
[Black "Beaumont, Chris R"]
[Result "1-0"]
[ECO "B07"]
[WhiteElo "2501"]
[BlackElo "2236"]
[Annotator "TA"]
[PlyCount "137"]
[EventDate "2023.12.18"]
[EventType "swiss"]
[EventCountry "ENG"]
[SourceTitle "playchess.com"]
[Source "ChessBase"]
[SourceQuality "1"]
[TimeControl "40/6000+30:3000+30"]

{[%evp 10,137,25,39,62,57,67,68,59,54,62,41,50,39,27,41,20,25,41,8,7,3,47,48,48,39,33,-2,16,13,13,13,15,11,8,13,30,33,33,28,54,60,52,20,16,20,25,-29,-29,-27,-15,-28,12,3,8,8,7,1,81,75,85,58,262,58,395,59,45,45,47,49,61,54,56,67,105,26,40,19,84,82,89,100,95,41,42,31,28,28,31,25,67,53,91,83,83,45,48,45,45,45,70,45,45,45,46,46,60,60,137,137,137,137,137,137,137,95,137,137,137,110,137,137,637,602,1026,1011,12841,12841,931,903]} 1. e4 {[%emt 0:00:05]} d6 {[%emt 0:05:59]} 2. d4 {[%emt 0:00:06]} Nf6 {[%emt 0:00:04]} 3. Nc3 {[%emt 0:00:06]} g6 {[%emt 0:00:05]} 4. Be3 {[%emt 0:00:36]} c6 {[%emt 0:00:06]} 5. h3 {[%emt 0:00:41]} Bg7 {[%emt 0:00:29]} 6. f4 {[%emt 0:01:00]} Qa5 {[%emt 0:00:23]} 7. Bd3 {[%emt 0:01:50]} Nbd7 {[%emt 0:00:15]} 8. Nf3 {[%emt 0:00:38]} c5 {[%emt 0:00:19][%cal Ob7b5] White is slightly better.} 9. O-O {[%emt 0:01:17]} cxd4 {[%emt 0:00:08]} 10. Bxd4 {[%emt 0:01:18]} O-O $1 {[%emt 0:03:27]} 11. Qd2 {[%emt 0:27:30]} e5 {[%emt 0:14:38]} 12. Be3 {[%emt 0:06:00]} exf4 {[%emt 0:11:38][%mdl 64] Remove Defender} 13. Bxf4 {[%emt 0:00:27]} Nh5 {[%emt 0:05:06]} 14. Nd5 {[%emt 0:00:56]} (14. Bxd6 $2 {is the wrong capture.} Qb6+ 15. Rf2 Qxd6 $19) 14... Qxd2 {[%emt 0:01:11]} 15. Bxd2 {[%emt 0:00:03] With the idea Nc7.} Ng3 {[%emt 0:14:32]} 16. Rfe1 {[%emt 0:19:11] aiming for Bf4.} Ne5 {[%emt 0:22:13]} 17. Kf2 {[%emt 0:11:58]} Nh5 {[%emt 0:02:51]} 18. Bb4 {[%emt 0:11:45]} Rd8 {[%emt 0:02:02]} 19. g4 {[%emt 0:01:08]} Nxf3 {[%emt 0:04:00]} 20. Kxf3 {[%emt 0:00:19]} Nf6 {[%emt 0:00:06]} 21. Nc7 {[%emt 0:05:42][%cal Bd5c7,Bc7b5,Bb5a7][%mdl 32]} Rb8 {[%emt 0:00:15]} 22. Nb5 {[%emt 0:00:38]} Ne8 {[%emt 0:06:15]} 23. Nxa7 {[%emt 0:00:37]} Bxb2 {[%emt 0:00:57]} 24. Rab1 {[%emt 0:06:31]} Be5 {[%emt 0:00:34]} 25. Ba5 $1 {[%emt 0:03:23]} Rd7 {[%emt 0:00:09]} 26. a4 {[%emt 0:03:51]} (26. Nc6 $5 {[%cal Rc6b8]} Ra8 27. Nxe5 dxe5 28. Rb5 $14) 26... Ra8 {[%emt 0:03:32]} 27. Bb6 {[%emt 0:00:02]} Re7 {[%emt 0:00:40]} 28. Bf2 {[%emt 0:02:24]} (28. Nxc8 $142 Rxc8 29. Be3) 28... Be6 $11 {[%emt 0:00:49]} 29. Rb5 {[%emt 0:00:34]} Rc7 {[%emt 0:05:16]} 30. Reb1 {[%emt 0:01:10] [#]} b6 $1 {[%emt 0:01:20]} 31. Bxb6 {[%emt 0:01:15]} Rcxa7 {[%emt 0:00:02]} 32. Bxa7 {[%emt 0:00:05]} Rxa7 {[%emt 0:00:02]} 33. Rb8 {[%emt 0:00:19]} Rxa4 {[%emt 0:05:05]} 34. Rxe8+ $16 {[%emt 0:00:11]} Kg7 {[%emt 0:00:01]} 35. g5 {[%emt 0:01:30] Rb7 is the strong threat.} Bxh3 $2 {[%emt 0:00:35]} (35... Bd7 $1 $14 36. Rd8 Bxh3) 36. Rbb8 $2 {[%emt 0:00:21]} (36. Rb7 $1 $18) 36... h6 $2 {[%emt 0:00:15][%mdl 8192]} (36... h5 $14) 37. gxh6+ $2 {[%emt 0:00:29]} (37. Rh8 $1 $18 {[%csl Gh8][%cal Rb8g8]} hxg5 38. Rbg8+ (38. Rxh3 d5 $18) 38... Kf6 39. Rxh3) 37... Kh7 $14 {[%emt 0:00:20]} 38. Rb7 {[%emt 0:00:25] Prevents Ra7.} Kxh6 {[%emt 0:00:35]} 39. Rxf7 {[%emt 0:00:06]} Kg5 {[%emt 0:00:50]} 40. Ke3 {[%emt 0:01:32]} Bg4 {[%emt 0:00:48]} 41. Rf1 {[%emt 0:51:29]} Bh5 {[%emt 0:12:44]} 42. c4 {[%emt 0:00:00]} (42. Ref8 $16) 42... Ra5 {[%emt 0:05:44]} 43. Rff8 {[%emt 0:00:00]} Bh2 {[%emt 0:06:23]} (43... Ra3 $11) 44. Ra8 $16 {[%emt 0:00:00]} Bf4+ {[%emt 0:00:29][%mdl 64] Deflection} 45. Kf2 $1 {[%emt 0:00:00]} Rc5 {[%emt 0:10:06]} 46. Rab8 {[%emt 0:00:00]} (46. Rfc8 $16) 46... Rc7 $14 {[%emt 0:01:51]} 47. Rb5+ {[%emt 0:00:00]} Be5 {[%emt 0:00:19]} 48. Ke3 {[%emt 0:00:00]} Bg4 {[%emt 0:02:27]} 49. Rf2 {[%emt 0:00:00]} Be6 {[%emt 0:00:52]} 50. Rc2 {[%emt 0:00:00]} Rc5 {[%emt 0:03:26]} 51. Rg2+ {[%emt 0:00:00]} Kf6 {[%emt 0:00:38]} 52. Rf2+ {[%emt 0:00:00]} Kg7 $1 {[%emt 0:02:11]} 53. Rb7+ {[%emt 0:00:00]} Kh6 {[%emt 0:00:04]} 54. Re7 {[%emt 0:00:00]} Bg4 {[%emt 0:06:47]} 55. Rg2 {[%emt 0:00:00]} Bc8 {[%emt 0:02:06] This pair of bishops is nice.} 56. Rg1 {[%emt 0:00:00]} g5 {[%emt 0:00:42]} 57. Be2 {[%emt 0:00:00] Rh1+ would be deadly.} Kg6 {[%emt 0:01:01]} 58. Re8 {[%emt 0:00:00] Inhibits Ra5.} Kf7 {[%emt 0:01:01] Wards off Rg8} ({Black should play} 58... Bf4+ $14 59. Kd3 Ba6) 59. Bh5+ $16 {[%emt 0:00:00]} Kf6 {[%emt 0:01:18]} 60. Rf8+ $1 {[%emt 0:00:00]} Ke7 {[%emt 0:00:01]} 61. Rf7+ $1 {[%emt 0:00:00]} Ke6 {[%emt 0:00:14]} 62. Ra7 {[%emt 0:00:00]} ({But not} 62. Rxg5 Bd4+ 63. Kxd4 Rxg5 $16) 62... Bf4+ {[%emt 0:00:38]} 63. Kd4 {[%emt 0:00:00]} Kf6 {[%emt 0:00:32] [#]} 64. Rf7+ $1 {[%emt 0:06:39]} Ke6 {[%emt 0:00:02] [#]} 65. Rh7 $1 {[%emt 0:00:03]} Be5+ $2 {[%emt 0:00:49][%mdl 8192]} (65... Kf6 $16) 66. Kd3 $18 {[%emt 0:00:04] Strongly threatening Bg4+. White is clearly winning.} Bf4 {[%emt 0:00:19]} 67. Ra1 {[%emt 0:01:39] Black must now prevent Raa7.} Bg3 {[%emt 0:02:47]} 68. Raa7 {[%emt 0:01:11] Intending Rae7+ and mate.} Ke5 {[%emt 0:00:23]} 69. Rae7+ {[%emt 0:00:12] Weighted Error Value: White=0.23 (precise) /Black=0.26 (precise)} 1-0

[Event "Caplin Hastings Masters 2023-24"]
[Site "Hastings"]
[Date "2024.01.02"]
[Round "6.12"]
[White "Boyer, Mahel"]
[Black "Juknis, Paulius"]
[Result "1-0"]
[ECO "B30"]
[WhiteElo "2427"]
[BlackElo "2148"]
[Annotator "RC"]
[PlyCount "83"]
[EventDate "2023.12.18"]
[EventType "swiss"]
[EventCountry "ENG"]
[SourceTitle "playchess.com"]
[Source "ChessBase"]
[SourceQuality "1"]
[TimeControl "40/6000+30:3000+30"]

1. e4 {[%emt 0:08:45]} c5 {[%emt 0:00:25]} 2. Nf3 {[%emt 0:00:22]} Nc6 {[%emt 0:00:29]} 3. Bb5 {[%emt 0:00:14]} Nf6 {[%emt 0:00:57]} 4. Bxc6 {[%emt 0:00:34]} dxc6 {[%emt 0:00:26]} 5. d3 {[%emt 0:00:08]} g6 {[%emt 0:01:14]} 6. Be3 {[%emt 0:00:09]} b6 {[%emt 0:02:32]} 7. Qc1 {[%emt 0:00:07]} h6 {[%emt 0:04:15]} 8. a4 {[%emt 0:02:02]} a5 {[%emt 0:02:02]} 9. Bd2 {[%emt 0:00:07]} Bg7 {[%emt 0:08:21]} 10. Bc3 {[%emt 0:00:07]} O-O {[%emt 0:02:50]} 11. Qe3 {[%emt 0:00:06]} Ne8 {[%emt 0:11:35]} 12. Bxg7 {[%emt 0:04:05]} Kxg7 {[%emt 0:00:10]} 13. Nc3 {[%emt 0:03:31]} f6 {[%emt 0:03:09]} 14. d4 {[%emt 0:01:03]} cxd4 {[%emt 0:02:10]} 15. Nxd4 {[%emt 0:00:04]} e5 {[%emt 0:01:45]} 16. Nde2 {[%emt 0:00:06]} Nd6 {[%emt 0:05:58]} 17. Rd1 {[%emt 0:09:03]} Qc7 {[%emt 0:01:15]} 18. h4 {[%emt 0:02:47]} Be6 {[%emt 0:03:27]} 19. b3 {[%emt 0:03:25]} Nf7 {[%emt 0:08:02]} 20. f4 {[%emt 0:05:55]} Rae8 {[%emt 0:13:03]} 21. Qg3 {[%emt 0:01:25]} Kh7 {[%emt 0:08:16]} 22. O-O {[%emt 0:00:54]} Bc8 {[%emt 0:02:49]} 23. f5 {[%emt 0:08:42]} g5 {[%emt 0:02:35]} 24. hxg5 {[%emt 0:01:34]} Nxg5 {[%emt 0:00:56]} 25. Qe3 {[%emt 0:00:35]} Ba6 {[%emt 0:01:03]} 26. Kf2 {[%emt 0:00:31]} Rd8 {[%emt 0:03:53]} 27. Rh1 {[%emt 0:04:07]} Rxd1 {[%emt 0:01:08]} 28. Nxd1 {[%emt 0:04:17]} Rd8 {[%emt 0:00:34]} 29. c4 {[%emt 0:00:01]} b5 {[%emt 0:02:30]} 30. cxb5 {[%emt 0:05:23]} cxb5 {[%emt 0:00:09]} 31. Ndc3 {[%emt 0:00:03]} Bb7 {[%emt 0:08:32]} 32. axb5 {[%emt 0:04:38]} Qd7 {[%emt 0:03:08]} 33. Rd1 {[%emt 0:01:51]} Nxe4+ {[%emt 0:00:00]} 34. Qxe4 {[%emt 0:00:17]} Qxd1 {[%emt 0:01:56]} 35. Qxb7+ {[%emt 0:00:23]} Qd7 {[%emt 0:02:47]} 36. Qxd7+ {[%emt 0:00:09]} Rxd7 {[%emt 0:00:04]} 37. Ne4 {[%emt 0:00:25]} Kg7 {[%emt 0:02:03]} 38. Ke3 {[%emt 0:02:10]} Kf7 {[%emt 0:01:25]} 39. b6 {[%emt 0:00:41]} Rd8 {[%emt 0:01:04]} 40. N2c3 {[%emt 0:02:07]} Ke7 {[%emt 0:00:54]} 41. Nc5 {[%emt 0:51:31]} Rb8 {[%emt 0:01:24]} 42. b7 {[%emt 0:00:00]} 1-0

[Event "Caplin Hastings Masters 2023-24"]
[Site "Hastings"]
[Date "2024.01.02"]
[Round "6.13"]
[White "Gimenez Menchon, Cesar"]
[Black "Wadsworth, Matthew J"]
[Result "0-1"]
[ECO "C01"]
[WhiteElo "2088"]
[BlackElo "2448"]
[Annotator "RC"]
[PlyCount "90"]
[EventDate "2023.12.18"]
[EventType "swiss"]
[EventCountry "ENG"]
[SourceTitle "playchess.com"]
[Source "ChessBase"]
[SourceQuality "1"]
[TimeControl "40/6000+30:3000+30"]

1. e4 {[%emt 0:00:03]} e6 {[%emt 0:00:05]} 2. d4 {[%emt 0:00:06]} d5 {[%emt 0:00:04]} 3. exd5 {[%emt 0:00:07]} exd5 {[%emt 0:00:07]} 4. Nf3 {[%emt 0:00:06]} Nc6 {[%emt 0:00:37]} 5. Nc3 {[%emt 0:00:27]} Bb4 {[%emt 0:02:39]} 6. Bd3 {[%emt 0:01:33]} Nge7 {[%emt 0:06:17]} 7. a3 {[%emt 0:19:32]} Bxc3+ {[%emt 0:02:02]} 8. bxc3 {[%emt 0:00:09]} Bf5 {[%emt 0:03:19]} 9. O-O {[%emt 0:07:00]} O-O {[%emt 0:00:43]} 10. Rb1 {[%emt 0:01:29]} b6 {[%emt 0:00:25]} 11. Re1 {[%emt 0:00:49]} Re8 {[%emt 0:03:26]} 12. Bf4 {[%emt 0:04:47]} Qd7 {[%emt 0:05:35]} 13. Qd2 {[%emt 0:11:29]} f6 {[%emt 0:10:06]} 14. h3 {[%emt 0:08:53]} Na5 {[%emt 0:03:54]} 15. Nh4 {[%emt 0:08:03]} Bxd3 {[%emt 0:10:26]} 16. cxd3 {[%emt 0:00:12]} Ng6 {[%emt 0:01:06]} 17. Nxg6 {[%emt 0:01:02]} hxg6 {[%emt 0:00:02]} 18. Bg3 {[%emt 0:06:26]} Rxe1+ {[%emt 0:03:25]} 19. Rxe1 {[%emt 0:00:25]} Re8 {[%emt 0:00:38]} 20. Rxe8+ {[%emt 0:02:01]} Qxe8 {[%emt 0:00:01]} 21. Bxc7 {[%emt 0:00:47]} Qe7 {[%emt 0:00:44]} 22. Bg3 {[%emt 0:05:03]} Qxa3 {[%emt 0:01:27]} 23. Kh2 {[%emt 0:01:58]} Qa1 {[%emt 0:09:01]} 24. h4 {[%emt 0:08:42]} Qa4 {[%emt 0:11:53]} 25. Qe2 {[%emt 0:02:04]} Qd7 {[%emt 0:00:26]} 26. Qa2 {[%emt 0:04:32]} Nc6 {[%emt 0:01:14]} 27. Qa4 {[%emt 0:00:54]} Ne5 {[%emt 0:02:18]} 28. Qa2 {[%emt 0:08:20]} Ng4+ {[%emt 0:03:11]} 29. Kh1 {[%emt 0:00:32]} Kh7 {[%emt 0:04:02]} 30. c4 {[%emt 0:02:42]} dxc4 {[%emt 0:02:32]} 31. Qxc4 {[%emt 0:00:06]} Qe8 {[%emt 0:01:46]} 32. f3 {[%emt 0:00:49]} Ne3 {[%emt 0:00:25]} 33. Qc7 {[%emt 0:00:38]} Qa4 {[%emt 0:02:54]} 34. Bf2 {[%emt 0:01:46]} Qd1+ {[%emt 0:00:34]} 35. Kh2 {[%emt 0:00:06]} Nf1+ {[%emt 0:01:26]} 36. Kg1 {[%emt 0:01:23]} Nd2+ {[%emt 0:00:26]} 37. Kh2 {[%emt 0:00:05]} Qe2 {[%emt 0:00:29]} 38. Bg1 {[%emt 0:03:32]} Nxf3+ {[%emt 0:01:05]} 39. Kh1 {[%emt 0:00:43]} Nxg1 {[%emt 0:00:45]} 40. d5 {[%emt 0:00:27]} Qe1 {[%emt 0:01:45]} 41. Kh2 {[%emt 0:05:57]} Ne2 {[%emt 0:00:16]} 42. g3 {[%emt 0:04:10]} Qg1+ {[%emt 0:00:24]} 43. Kh3 {[%emt 0:00:08]} Qh1+ {[%emt 0:00:17]} 44. Kg4 {[%emt 0:00:06]} f5+ {[%emt 0:00:09]} 45. Kg5 {[%emt 0:00:13]} Qf3 {[%emt 0:00:11]} 0-1

[Event "Caplin Hastings Masters 2023-24"]
[Site "Hastings"]
[Date "2024.01.02"]
[Round "6.14"]
[White "Willow, Jonah B"]
[Black "Sarkar, Justin"]
[Result "1-0"]
[ECO "B75"]
[WhiteElo "2427"]
[BlackElo "2272"]
[Annotator "RC"]
[PlyCount "61"]
[EventDate "2023.12.18"]
[EventType "swiss"]
[EventCountry "ENG"]
[SourceTitle "playchess.com"]
[Source "ChessBase"]
[SourceQuality "1"]
[TimeControl "40/6000+30:3000+30"]

1. e4 {[%emt 0:00:04]} c5 {[%emt 0:00:34]} 2. Nc3 {[%emt 0:00:11]} Nc6 {[%emt 0:02:26]} 3. Nf3 {[%emt 0:00:20]} g6 {[%emt 0:00:15]} 4. d4 {[%emt 0:00:06]} cxd4 {[%emt 0:00:03]} 5. Nxd4 {[%emt 0:00:05]} Bg7 {[%emt 0:00:11]} 6. Be3 {[%emt 0:00:04]} Nf6 {[%emt 0:00:19]} 7. Bc4 {[%emt 0:00:07]} d6 {[%emt 0:01:00]} 8. f3 {[%emt 0:00:28]} Qb6 {[%emt 0:01:27]} 9. Nf5 {[%emt 0:11:04]} Qxb2 {[%emt 0:00:14]} 10. Nxg7+ {[%emt 0:00:02]} Kf8 {[%emt 0:00:09]} 11. Nd5 {[%emt 0:00:03]} Nxd5 {[%emt 0:04:17]} 12. Bxd5 {[%emt 0:00:08]} Kxg7 {[%emt 0:02:14]} 13. Rb1 {[%emt 0:00:10]} Qc3+ {[%emt 0:02:48]} 14. Kf2 {[%emt 0:00:28]} h5 {[%emt 0:18:37]} 15. Rb3 {[%emt 0:03:57]} Qa5 {[%emt 0:06:36]} 16. Qa1+ {[%emt 0:02:25]} e5 {[%emt 0:05:34]} 17. Rhb1 {[%emt 0:01:21]} Qc7 {[%emt 0:01:06]} 18. Qc3 {[%emt 0:06:56]} Qa5 {[%emt 0:36:01]} 19. Qc4 {[%emt 0:19:57]} Nd4 {[%emt 0:00:20]} 20. Rxb7 {[%emt 0:14:10]} Bxb7 {[%emt 0:00:30]} 21. Rxb7 {[%emt 0:00:04]} Rhf8 {[%emt 0:13:53]} 22. Bxf7 {[%emt 0:01:26]} Rab8 {[%emt 0:00:44]} 23. Re7 {[%emt 0:06:58]} Qd8 {[%emt 0:07:03]} 24. Bg5 {[%emt 0:01:01]} Qxe7 {[%emt 0:00:20]} 25. Bxe7 {[%emt 0:00:10]} Rfc8 {[%emt 0:00:18]} 26. Bxd6 {[%emt 0:05:58]} Rxc4 {[%emt 0:00:07]} 27. Bxc4 {[%emt 0:00:02]} Rc8 {[%emt 0:00:33]} 28. Bxe5+ {[%emt 0:00:37]} Kh7 {[%emt 0:00:34]} 29. Bd5 {[%emt 0:06:27]} Rxc2+ {[%emt 0:00:32]} 30. Ke3 {[%emt 0:00:04]} Nc6 {[%emt 0:06:04]} 31. Bd6 {[%emt 0:00:42]} 1-0

[Event "Caplin Hastings Masters 2023-24"]
[Site "Hastings"]
[Date "2024.01.02"]
[Round "6.15"]
[White "Derakhshani, Borna"]
[Black "Han, Qixiang"]
[Result "1-0"]
[ECO "D12"]
[WhiteElo "2380"]
[BlackElo "1711"]
[Annotator "ChessBase"]
[PlyCount "109"]
[EventDate "2023.12.18"]
[EventType "swiss"]
[EventCountry "ENG"]
[SourceTitle "playchess.com"]
[Source "ChessBase"]
[SourceQuality "1"]
[TimeControl "40/6000+30:3000+30"]

1. d4 {[%emt 0:00:22]} d5 {[%emt 0:00:03]} 2. c4 {[%emt 0:00:03]} c6 {[%emt 0:00:04]} 3. Nc3 {[%emt 0:00:12]} Nf6 {[%emt 0:00:06]} 4. Nf3 {[%emt 0:00:55]} Bf5 {[%emt 0:00:21]} 5. e3 {[%emt 0:00:07]} e6 {[%emt 0:00:17]} 6. Nh4 {[%emt 0:00:48]} Be4 {[%emt 0:00:07]} 7. f3 {[%emt 0:00:06]} Bg6 {[%emt 0:00:04]} 8. Bd2 {[%emt 0:01:03]} Be7 {[%emt 0:00:23]} 9. Qb3 {[%emt 0:00:45]} Qc7 {[%emt 0:00:08]} 10. g3 {[%emt 0:04:02]} Nbd7 {[%emt 0:01:36]} 11. O-O-O {[%emt 0:07:13]} a6 {[%emt 0:02:22]} 12. Nxg6 {[%emt 0:01:12]} hxg6 {[%emt 0:00:17]} 13. e4 {[%emt 0:00:13]} dxc4 {[%emt 0:02:01]} 14. Bxc4 {[%emt 0:03:12]} b5 {[%emt 0:01:31]} 15. Be2 {[%emt 0:00:08]} Rc8 {[%emt 0:05:27]} 16. Kb1 {[%emt 0:01:45]} c5 {[%emt 0:06:00]} 17. Bf4 {[%emt 0:03:46]} Qb7 {[%emt 0:01:44]} 18. d5 {[%emt 0:02:27]} c4 {[%emt 0:03:53]} 19. Qc2 {[%emt 0:00:05]} e5 {[%emt 0:02:57]} 20. Be3 {[%emt 0:04:31]} Bd6 {[%emt 0:04:57]} 21. Rc1 {[%emt 0:03:49]} O-O {[%emt 0:06:26]} 22. Qd1 {[%emt 0:05:56]} Rc7 {[%emt 0:03:13]} 23. h4 {[%emt 0:01:17]} Rfc8 {[%emt 0:00:25]} 24. g4 {[%emt 0:02:16]} b4 {[%emt 0:00:47]} 25. Na4 {[%emt 0:00:06]} c3 {[%emt 0:00:13]} 26. Qb3 {[%emt 0:02:05]} cxb2 {[%emt 0:11:19]} 27. Qxb2 {[%emt 0:01:48]} Rb8 {[%emt 0:04:26]} 28. Rxc7 {[%emt 0:01:01]} Qxc7 {[%emt 0:02:54]} 29. Rc1 {[%emt 0:00:12]} Qd8 {[%emt 0:06:16]} 30. Rc6 {[%emt 0:00:25]} Ne8 {[%emt 0:01:41]} 31. g5 {[%emt 0:03:16]} a5 {[%emt 0:01:57]} 32. Qc2 {[%emt 0:00:38]} Bf8 {[%emt 0:03:59]} 33. Ba7 {[%emt 0:07:16]} Rb7 {[%emt 0:01:37]} 34. Rc8 {[%emt 0:04:52]} Qe7 {[%emt 0:00:09]} 35. Be3 {[%emt 0:00:24]} b3 {[%emt 0:05:22]} 36. axb3 {[%emt 0:06:37]} Qa3 {[%emt 0:01:06]} 37. Bd1 {[%emt 0:00:37]} Qxa4 {[%emt 0:01:16]} 38. Rxe8 {[%emt 0:00:12]} Qb5 {[%emt 0:01:36]} 39. Kc1 {[%emt 0:13:57]} Kh7 {[%emt 0:04:40]} 40. Qc4 {[%emt 0:01:01]} Ba3+ {[%emt 0:04:57]} 41. Kd2 {[%emt 0:51:35]} Qxc4 {[%emt 0:52:39]} 42. bxc4 {[%emt 0:00:05]} Rb2+ {[%emt 0:00:12]} 43. Kc3 {[%emt 0:00:35]} Rb4 {[%emt 0:02:21]} 44. Rd8 {[%emt 0:00:25]} Bb2+ {[%emt 0:01:40]} 45. Kd3 {[%emt 0:00:26]} Nb6 {[%emt 0:00:25]} 46. Bc5 {[%emt 0:00:39]} Rxc4 {[%emt 0:03:23]} 47. Bxb6 {[%emt 0:00:08]} Rc3+ {[%emt 0:00:11]} 48. Kd2 {[%emt 0:00:18]} Ra3 {[%emt 0:00:05]} 49. d6 {[%emt 0:00:40]} a4 {[%emt 0:00:37]} 50. d7 {[%emt 0:00:06]} Ra2 {[%emt 0:00:07]} 51. Bc2 {[%emt 0:00:22]} a3 {[%emt 0:00:07]} 52. Ra8 {[%emt 0:00:07]} f6 {[%emt 0:00:26]} 53. d8=Q {[%emt 0:00:07]} Bc3+ {[%emt 0:00:07]} 54. Kd3 {[%emt 0:00:04]} Rxc2 {[%emt 0:00:16]} 55. Qh8# {[%emt 0:00:05]} 1-0